bitfinex-derivatives/quotes_BNBF0:USTF0_20250521
["timestamp","ask_amount","ask_price","bid_price","bid_amount"]
[1747802511316,1.38315205,662.24,661.14,1.10479139]
[1747802511817,1.38315205,662.24,661.15,1.10479139]
[1747802512016,1.12012344,662.22,661.15,1.10479139]
[1747802512517,1.12012344,662.22,660.33,0.29042344]
[1747802512720,1.38314211,662.22,660.77,0.26301867]
[1747802512921,1.38314211,662.22,660.78,1.71607239]
[1747802513121,1.38314211,662.22,660.79,0.61136922]
[1747802513421,1.38314211,662.22,660.8,1.71607239]
[1747802513614,1.38314211,662.22,660.81,0.61136922]
[1747802513818,1.38314211,662.22,660.82,1.71607239]
[1747802514019,1.38314211,662.22,660.83,0.61136922]
[1747802514219,1.38314211,662.22,660.84,1.71610834]
[1747802514413,1.38314211,662.22,660.85,0.61140517]
[1747802514620,1.12012344,662.12,660.86,0.61140517]
[1747802514818,1.12012344,662.12,660.87,1.71610834]
[1747802515023,1.12012344,662.12,660.88,0.61140517]
[1747802515223,1.12012344,662.12,660.87,1.10470317]
[1747802515224,1.12012344,662.12,660.89,1.71610834]
[1747802515421,1.12012344,662.12,660.9,0.61140517]
[1747802515622,1.12012344,662.12,660.91,0.61140517]
[1747802515921,1.12012344,662.12,660.92,0.61140517]
[1747802516121,1.12012344,662.12,660.93,0.61140517]
[1747802516322,1.12012344,662.12,660.94,0.61140517]
[1747802516525,1.12012344,662.12,660.95,1.71610834]
[1747802516821,1.12012344,662.12,660.96,1.71610834]
[1747802517024,1.12012344,662.04,660.97,0.61140517]
[1747802517222,1.12012344,662.04,660.98,1.71610834]
[1747802517524,1.12012344,662.04,660.99,0.6115847]
[1747802517725,1.12012344,662.04,661.0,1.71628787]
[1747802517925,1.12012344,662.04,661.01,0.6115847]
[1747802518226,1.12012344,662.04,661.02,1.71628787]
[1747802518420,1.12012344,662.04,661.03,0.6115847]
[1747802518625,1.12012344,662.04,661.04,0.6115847]
[1747802518825,1.12012344,662.04,661.05,0.6115847]
[1747802519021,1.12012344,662.04,661.06,1.71628787]
[1747802519225,1.12012344,662.04,661.07,0.6115847]
[1747802519525,1.12012344,662.04,661.08,1.71628787]
[1747802519820,1.12012344,662.04,661.09,1.71628787]
[1747802520033,1.12012344,662.22,661.1,0.6115847]
[1747802520224,1.12012344,662.22,661.11,1.71628787]
[1747802520424,1.12012344,662.22,661.12,0.6115847]
[1747802520620,1.12012344,662.22,661.13,0.6115847]
[1747802520825,1.12012344,662.22,661.14,0.61128576]
[1747802521124,1.12012344,662.22,661.15,0.61128576]
[1747802521325,1.12012344,662.22,661.16,0.61128576]
[1747802521626,1.12012344,662.22,661.17,1.71598893]
[1747802521825,1.12012344,662.22,661.18,0.61128576]
[1747802522020,1.12012344,662.22,661.19,1.71598893]
[1747802522321,1.12012344,662.22,661.2,0.61128576]
[1747802522524,1.12012344,662.22,661.21,0.61128576]
[1747802522726,1.12012344,662.22,661.22,0.61128576]
[1747802522926,1.12012344,662.22,661.23,0.61128576]
[1747802523227,1.12012344,662.22,661.24,1.71598893]
[1747802523422,1.12012344,662.22,661.25,0.61128576]
[1747802523622,1.12012344,662.22,661.26,0.61128576]
[1747802523825,1.12012344,662.22,661.27,0.61128576]
[1747802524025,1.12012344,662.22,661.28,0.61128576]
[1747802524227,1.12012344,662.22,661.29,0.61128576]
[1747802524427,1.12012344,662.29,661.3,0.61128576]
[1747802524626,1.12012344,662.29,661.31,1.71598893]
[1747802524923,1.12012344,662.29,661.32,1.71598893]
[1747802525130,1.12012344,662.29,661.33,1.71598893]
[1747802525327,1.12012344,662.29,661.34,0.61128576]
[1747802525622,1.12012344,662.29,661.35,1.71681394]
[1747802525827,1.12012344,662.29,661.36,0.61211077]
[1747802526127,1.12012344,662.29,661.37,1.71681394]
[1747802526322,1.12012344,662.29,661.38,0.61211077]
[1747802526524,1.174,662.28,661.39,1.71681394]
[1747802526724,1.174,662.28,661.4,0.61211077]
[1747802527027,1.12012344,662.24,661.41,1.71681394]
[1747802527227,1.12012344,662.24,661.42,0.61211077]
[1747802527421,1.12012344,662.24,661.43,0.61211077]
[1747802527625,1.12012344,662.24,661.44,0.61211077]
[1747802527825,1.12012344,662.24,661.45,1.71681394]
[1747802528025,1.12012344,662.24,661.46,0.61211077]
[1747802528322,1.12012344,662.24,661.47,0.61211077]
[1747802528528,1.12012344,662.24,661.48,1.71681394]
[1747802528824,1.12012344,662.24,661.49,0.61211077]
[1747802529024,1.12012344,662.24,661.48,1.10470317]
[1747802529025,1.12012344,662.24,661.5,0.61211077]
[1747802529231,1.12012344,662.24,661.51,1.71681394]
[1747802529429,1.12012344,662.24,661.52,0.61211077]
[1747802529624,1.12012344,662.26,661.53,1.71681394]
[1747802529825,1.12012344,662.26,661.54,0.61211077]
[1747802530029,1.12012344,662.26,661.55,0.61211077]
[1747802530230,1.12012344,662.26,661.56,1.71681394]
[1747802530425,1.12012344,662.26,661.57,0.61211077]
[1747802530630,1.12012344,662.26,661.58,0.61360368]
[1747802530830,1.12012344,662.26,661.59,1.71830685]
[1747802531033,1.12012344,662.26,661.6,0.61360368]
[1747802531226,1.12012344,662.26,661.61,0.61360368]
[1747802531431,1.12012344,662.26,661.62,1.71830685]
[1747802531631,1.12012344,662.26,661.63,0.61360368]
[1747802531931,1.12012344,662.26,661.64,0.61360368]
[1747802532226,1.12012344,662.26,661.65,1.71830685]
[1747802532430,1.12012344,662.26,661.66,1.71830685]
[1747802532631,1.174,662.28,661.67,1.71830685]
[1747802532831,1.174,662.28,661.68,0.61360368]
[1747802533033,1.174,662.28,661.69,1.71830685]
[1747802533334,1.174,662.28,661.7,1.71830685]
[1747802533633,1.174,662.28,661.71,1.71830685]
[1747802533829,1.174,662.28,661.71,1.10470317]
[1747802534030,1.174,662.28,661.72,0.61275964]
[1747802534229,1.174,662.28,661.73,0.61275964]
[1747802534431,1.174,662.28,661.74,0.61275964]
[1747802534632,1.174,662.28,661.75,0.61275964]
[1747802534833,1.174,662.28,661.76,0.61275964]
[1747802535134,1.174,662.28,661.77,1.71746281]
[1747802535327,1.174,662.28,661.78,0.61275964]
[1747802535527,1.174,662.28,661.79,0.61275964]
[1747802535734,1.174,662.28,661.8,0.61275964]
[1747802535933,1.174,662.28,661.81,0.61275964]
[1747802536135,1.174,662.28,661.82,0.61275964]
[1747802536433,1.174,662.28,661.83,0.61275964]
[1747802536632,1.174,662.28,661.84,0.61275964]
[1747802536831,1.174,662.28,661.85,0.61275964]
[1747802537033,1.174,662.28,661.86,0.61275964]
[1747802537236,1.174,662.28,661.87,0.61258085]
[1747802537533,1.174,662.28,661.88,0.61258692]
[1747802537730,1.174,662.28,661.89,0.61258692]
[1747802537935,1.174,662.28,661.9,0.61258692]
[1747802538234,1.174,662.28,661.91,0.61258692]
[1747802538434,1.174,662.28,661.69,0.984]
[1747802538638,1.174,662.28,661.7,0.61239351]
[1747802538833,1.174,662.28,661.71,1.71042387]
[1747802539033,1.174,662.28,661.72,0.61239351]
[1747802539231,1.174,662.28,661.73,1.71042387]
[1747802539432,1.174,662.28,661.74,0.61239351]
[1747802539634,1.174,662.28,661.75,1.71042387]
[1747802539837,1.174,662.28,661.76,0.61239351]
[1747802540037,1.174,662.28,661.77,1.71042387]
[1747802540338,1.174,662.28,661.78,0.61239351]
[1747802540539,1.174,662.28,661.79,0.61239351]
[1747802540734,1.174,662.28,661.8,0.61239351]
[1747802540948,1.174,662.28,661.81,0.61239351]
[1747802541139,1.174,662.28,661.82,1.71042387]
[1747802541341,1.174,662.28,661.83,0.61239351]
[1747802541532,1.174,662.28,661.69,0.984]
[1747802541533,1.174,662.28,661.84,1.71042387]
[1747802541737,1.174,662.28,661.85,0.61239351]
[1747802541933,1.174,662.28,661.86,1.71042387]
[1747802542140,1.174,662.28,661.87,0.61239351]
[1747802542334,1.174,662.28,661.88,0.61239351]
[1747802542539,1.174,662.28,661.89,1.71042387]
[1747802542739,1.174,662.28,661.9,0.61239351]
[1747802542939,1.174,662.28,661.91,1.71042387]
[1747802543135,1.174,662.28,661.92,0.61239351]
[1747802543339,1.174,662.28,661.93,0.61239351]
[1747802543639,1.174,662.28,661.94,1.71042387]
[1747802543842,1.174,662.28,661.95,0.61239351]
[1747802544040,1.174,662.28,661.96,0.61239351]
[1747802544236,1.174,662.28,661.97,1.71042387]
[1747802544551,1.174,662.28,661.98,1.71042387]
[1747802544739,1.174,662.28,661.99,0.61239351]
[1747802544940,1.174,662.28,662.0,1.71042387]
[1747802545140,1.174,662.28,662.01,0.61239351]
[1747802545440,1.174,662.28,662.02,1.71042387]
[1747802545641,1.174,662.28,662.03,0.61048197]
[1747802545936,1.174,662.28,662.04,1.70851233]
[1747802546141,1.174,662.28,662.05,0.61048197]
[1747802546342,1.174,662.28,662.06,0.61048197]
[1747802546544,1.174,662.28,662.07,0.61048197]
[1747802546738,1.174,662.28,662.08,0.61048197]
[1747802546943,1.174,662.28,662.09,0.61048197]
[1747802547139,1.174,662.28,662.1,1.70851233]
[1747802547340,1.174,662.28,662.11,0.61048197]
[1747802547538,1.174,662.28,662.12,1.70851233]
[1747802547742,1.174,662.28,662.13,0.61048197]
[1747802547942,1.174,662.28,662.14,1.70851233]
[1747802548144,1.174,662.28,661.69,0.984]
[1747802548145,1.174,662.28,662.15,0.61048197]
[1747802548442,1.174,662.28,662.16,0.61048197]
[1747802548646,1.174,662.28,661.69,0.984]
[1747802548847,1.174,662.28,661.7,1.70170622]
[1747802549048,1.174,662.28,661.71,0.60959221]
[1747802549240,1.174,662.28,661.72,0.60959221]
[1747802549440,1.174,662.28,661.73,1.70170622]
[1747802549644,1.174,662.28,661.74,0.60959221]
[1747802549941,1.174,662.28,661.75,1.70170622]
[1747802550145,1.174,662.28,661.76,0.60959221]
[1747802550445,1.174,662.28,661.77,1.70170622]
[1747802550649,1.174,662.28,661.78,0.60959221]
[1747802550946,1.174,662.28,661.79,1.70170622]
[1747802551147,1.174,662.28,661.8,0.60959221]
[1747802551450,1.174,662.28,661.81,0.60959221]
[1747802551647,1.174,662.28,661.79,1.09211401]
[1747802551648,1.174,662.28,661.82,1.70170622]
[1747802551846,1.174,662.28,661.83,0.60959221]
[1747802552043,1.174,662.28,661.84,0.60959221]
[1747802552248,1.174,662.28,661.85,0.60959221]
[1747802552544,1.174,662.28,661.86,1.70170622]
[1747802552750,1.174,662.28,661.87,0.60914136]
[1747802552943,1.174,662.28,661.88,0.60914136]
[1747802553143,1.174,662.28,661.89,0.60914136]
[1747802553345,1.174,662.28,661.9,1.70125537]
[1747802553544,1.174,662.28,661.91,0.60914136]
[1747802553747,1.174,662.28,661.92,0.60914136]
[1747802553947,1.174,662.28,661.93,0.60914136]
[1747802554145,1.174,662.28,661.69,0.984]
[1747802554345,1.174,662.28,661.7,0.60940292]
[1747802554550,1.174,662.28,661.71,1.70269526]
[1747802554752,1.174,662.28,661.72,0.60940292]
[1747802554952,1.174,662.28,661.73,0.60940292]
[1747802555251,1.174,662.28,661.74,0.60940292]
[1747802555448,1.174,662.28,661.75,1.70269526]
[1747802555644,1.174,662.28,661.76,0.60940292]
[1747802555852,1.174,662.28,661.77,1.70269526]
[1747802556046,1.174,662.28,661.78,0.60940292]
[1747802556251,1.174,662.28,661.79,0.60940292]
[1747802556444,1.174,662.28,661.8,0.60940292]
[1747802556646,1.12012344,662.87,661.81,1.70269526]
[1747802556845,1.12012344,662.87,661.82,0.60940292]
[1747802557049,1.12012344,662.87,661.83,1.70269526]
[1747802557249,1.12012344,662.87,661.84,0.60940292]
[1747802557452,1.12012344,662.87,661.85,0.60940292]
[1747802557753,1.12012344,662.87,661.86,1.70269526]
[1747802558053,1.12012344,662.87,661.87,0.60940292]
[1747802558252,1.12012344,662.87,661.88,1.70269526]
[1747802558454,1.12012344,662.87,661.89,0.60940292]
[1747802558653,1.12012344,662.87,661.9,0.60940292]
[1747802558855,1.12012344,662.87,661.91,0.60940292]
[1747802559054,1.12012344,662.87,661.92,0.60940292]
[1747802559253,1.12012344,662.87,661.93,0.60940292]
[1747802559454,1.12012344,662.87,661.69,0.984]
[1747802559656,1.12012344,662.87,661.7,0.60915716]
[1747802559956,0.954,662.86,661.71,0.60915716]
[1747802560256,0.954,662.86,661.72,1.70781026]
[1747802560452,0.954,662.86,661.69,0.984]
[1747802560453,0.954,662.86,661.73,1.70781026]
[1747802560653,0.954,662.86,661.74,0.60915716]
[1747802560853,0.954,662.86,661.75,1.70773854]
[1747802561053,0.954,662.86,661.76,0.60908544]
[1747802561250,0.954,662.86,661.77,0.60908544]
[1747802561551,0.954,662.86,661.78,1.70773854]
[1747802561753,0.954,662.86,661.79,0.60908544]
[1747802562049,0.954,662.86,661.8,1.70773854]
[1747802562254,0.954,662.86,661.81,0.60908544]
[1747802562453,0.954,662.86,661.82,0.60908544]
[1747802562652,0.954,662.86,661.83,0.60908544]
[1747802562858,0.954,662.86,661.84,0.60908544]
[1747802563157,0.954,662.86,661.85,1.70773854]
[1747802563353,0.954,662.86,661.86,1.70773854]
[1747802563552,0.954,662.86,661.87,0.60908544]
[1747802563759,0.954,662.86,661.88,0.60908544]
[1747802563952,0.954,662.86,661.89,1.70773854]
[1747802564157,0.954,662.86,661.9,0.60919898]
[1747802564452,0.954,662.86,661.91,0.60919898]
[1747802564656,0.954,662.86,661.92,1.70785208]
[1747802564855,0.954,662.86,661.92,1.0986531]
[1747802565060,0.954,662.86,661.55,0.26273867]
[1747802565260,0.954,662.86,661.93,1.287]
[1747802568558,1.12012344,662.83,661.93,1.287]
[1747802570767,0.26277141,662.82,661.93,1.287]
[1747802571270,1.12012344,662.57,661.93,1.287]
[1747802573770,1.12012344,662.53,661.93,1.287]
[1747802575967,1.12012344,662.52,661.93,1.287]
[1747802576572,1.12012344,662.52,661.94,0.61141098]
[1747802576766,1.12012344,662.52,661.93,1.287]
[1747802577165,1.12012344,662.52,661.94,0.61140003]
[1747802577467,1.12012344,662.52,661.95,0.61140003]
[1747802577668,1.12012344,662.52,661.96,0.61193314]
[1747802577869,1.12012344,662.52,661.93,1.287]
[1747802578070,1.12012344,662.52,661.94,0.611949]
[1747802578270,1.12012344,662.52,661.95,0.611949]
[1747802578464,1.12012344,662.52,661.96,0.61221665]
[1747802578668,1.12012344,662.52,661.93,1.287]
[1747802579471,1.12012344,662.51,661.93,1.287]
[1747802580173,1.12012344,662.51,661.94,0.61261398]
[1747802580367,1.12012344,662.51,661.38,0.29042344]
[1747802580569,1.12012344,662.51,661.39,0.61259059]
[1747802580768,1.12012344,662.51,661.4,1.7217362]
[1747802580966,1.12012344,662.51,661.41,1.72166889]
[1747802581267,1.12012344,662.51,661.42,0.61252328]
[1747802581471,1.12012344,662.51,661.43,1.72166889]
[1747802581673,1.12012344,662.51,661.44,0.61252328]
[1747802581973,1.12012344,662.5,661.48,0.29042344]
[1747802582171,1.12012344,662.5,661.49,0.61252328]
[1747802582368,1.12012344,662.5,661.5,0.6126171]
[1747802582568,1.12012344,662.5,661.51,1.72176271]
[1747802582773,1.12012344,662.5,661.52,0.6126171]
[1747802582972,1.12012344,662.5,661.53,1.72176271]
[1747802583167,1.12012344,662.5,661.54,0.6126171]
[1747802583370,1.12012344,662.5,661.55,0.6126171]
[1747802583674,1.12012344,662.5,661.56,1.72176271]
[1747802583872,1.12012344,662.5,661.57,0.6126171]
[1747802584073,1.12012344,662.5,661.58,0.61329287]
[1747802584269,1.12012344,662.5,661.59,1.72243848]
[1747802584474,1.12012344,662.22,661.6,0.61329287]
[1747802584676,1.12012344,662.22,661.61,0.61329287]
[1747802584974,1.12012344,662.22,661.62,1.72243848]
[1747802585274,1.12012344,662.22,661.63,0.61329287]
[1747802585474,1.12012344,662.22,661.64,1.72243848]
[1747802585673,1.12012344,662.22,661.65,0.61329287]
[1747802585872,1.12012344,662.22,661.66,0.61329287]
[1747802586074,1.12012344,662.22,661.67,1.72243848]
[1747802586275,1.12012344,662.22,661.68,1.72243848]
[1747802586471,1.12012344,662.22,661.69,0.61329287]
[1747802586778,1.12012344,662.22,661.7,0.61329287]
[1747802587077,1.12012344,662.22,661.71,0.61329287]
[1747802587274,1.12012344,662.22,661.72,0.61329287]
[1747802587475,1.12012344,662.22,661.73,0.61329287]
[1747802587675,1.12012344,662.22,661.74,0.61329287]
[1747802587874,1.12012344,662.22,661.75,0.61329287]
[1747802588075,1.12012344,662.22,661.76,0.61329287]
[1747802588377,1.12012344,662.22,661.77,0.61329287]
[1747802588573,1.12012344,662.22,661.78,0.61329287]
[1747802588777,1.12012344,662.22,661.79,0.61329287]
[1747802589078,1.12012344,662.22,661.8,0.61329287]
[1747802589277,1.12012344,662.22,661.81,0.61329287]
[1747802589478,1.12012344,662.22,661.51,0.824]
[1747802589673,1.12012344,662.22,661.52,0.6143109]
[1747802589873,1.12012344,662.2,661.53,0.6143109]
[1747802590076,1.12012344,662.2,661.54,0.6143109]
[1747802590273,1.12012344,662.2,661.55,1.72907035]
[1747802590473,1.12012344,662.2,661.56,0.6143109]
[1747802590678,1.12012344,662.2,661.57,0.6143109]
[1747802590979,1.12012344,662.2,661.58,0.61437727]
[1747802591180,1.12012344,662.2,661.59,1.72913672]
[1747802591480,1.12012344,662.2,661.6,0.61437727]
[1747802591774,1.12012344,662.2,661.61,0.61437727]
[1747802591979,1.12012344,662.2,661.62,0.61437727]
[1747802592274,1.12012344,662.2,661.63,0.61437727]
[1747802592481,1.12012344,662.2,661.64,0.61437727]
[1747802592678,1.12012344,662.2,661.65,1.72978815]
[1747802592980,1.12012344,662.2,661.66,0.61433359]
[1747802593180,1.12012344,662.2,661.67,0.61433359]
[1747802593383,1.12012344,662.2,661.68,0.61433359]
[1747802593583,1.12012344,662.2,661.69,0.61433359]
[1747802593782,1.12012344,662.2,661.7,0.61433359]
[1747802593985,1.12012344,662.2,661.71,0.61433359]
[1747802594280,1.12012344,662.2,661.72,0.61433359]
[1747802594484,1.12012344,662.2,661.73,0.61433359]
[1747802594687,1.12012344,662.2,661.51,0.824]
[1747802594884,1.12012344,662.2,661.52,0.61420474]
[1747802595086,1.12012344,662.13,661.53,0.61420474]
[1747802595285,1.12012344,662.13,661.54,0.61420474]
[1747802595485,1.12012344,662.13,661.55,0.61420474]
[1747802595680,1.12012344,662.13,661.56,0.61420474]
[1747802595884,1.12012344,662.13,661.57,0.61420474]
[1747802596081,1.12012344,662.13,661.58,1.728992]
[1747802596285,1.12012344,662.13,661.59,0.6141488]
[1747802596487,1.12012344,662.13,661.6,1.728992]
[1747802596786,1.12012344,662.13,661.61,0.6141488]
[1747802596987,1.12012344,662.13,661.62,0.6141488]
[1747802597180,1.12012344,662.13,661.51,0.824]
[1747802597181,1.12012344,662.13,661.63,0.6141488]
[1747802597385,1.12012344,662.14,661.64,0.6141488]
[1747802597586,1.12012344,662.14,661.65,0.6141488]
[1747802597781,1.12012344,662.14,661.66,0.6141488]
[1747802597982,1.12012344,662.14,661.67,0.6141488]
[1747802598181,1.12012344,662.14,661.68,0.6141488]
[1747802598384,1.12012344,662.14,661.51,0.824]
[1747802598581,1.12012344,662.14,661.52,0.61390793]
[1747802598781,1.12012344,662.14,661.53,0.61390793]
[1747802598984,1.12012344,662.14,661.54,0.61390793]
[1747802599184,1.12012344,662.14,661.55,0.61390793]
[1747802599384,1.12012344,662.14,661.51,0.824]
[1747802599588,1.12012344,662.14,661.52,0.61390677]
[1747802599787,1.12012344,662.14,661.51,0.824]
[1747802600289,1.12012344,662.04,661.51,0.824]
[1747802600882,1.12012344,662.04,661.52,0.61347061]
[1747802601087,1.12012344,662.04,661.53,0.61347061]
[1747802601282,1.12012344,662.04,661.54,0.61347061]
[1747802601481,1.12012344,662.04,661.55,0.61347061]
[1747802601682,1.12012344,662.04,661.56,1.72593782]
[1747802601986,1.12012344,662.04,661.57,0.61347061]
[1747802602187,1.12012344,662.04,661.58,0.61347061]
[1747802602383,1.12012344,662.04,661.59,0.61347061]
[1747802602583,1.12012344,662.04,661.6,0.61347061]
[1747802602786,1.12012344,662.04,661.61,0.61347061]
[1747802602982,1.12012344,662.04,660.98,0.29042344]
[1747802602983,1.12012344,662.18,661.62,0.61313956]
[1747802603186,1.12012344,662.18,661.63,1.72266849]
[1747802603383,1.12012344,662.18,661.64,0.61313956]
[1747802603583,1.12012344,662.18,661.65,0.61313956]
[1747802603788,1.12012344,662.18,661.66,1.72265878]
[1747802604087,1.12012344,662.18,661.67,1.72265878]
[1747802604280,1.12012344,662.18,661.68,0.61313956]
[1747802604487,1.12012344,662.18,661.69,0.61313956]
[1747802604684,1.12012344,662.18,661.7,0.61313956]
[1747802604885,1.12012344,662.18,661.71,0.61313956]
[1747802605086,1.12012344,662.18,661.72,0.61313956]
[1747802605286,1.12012344,662.18,661.73,0.61313956]
[1747802605484,1.151,662.19,661.74,0.61313956]
[1747802605685,1.151,662.19,661.75,0.61313956]
[1747802605885,1.151,662.19,661.76,0.61313956]
[1747802606088,1.151,662.19,661.77,0.61313956]
[1747802606283,1.151,662.19,661.78,0.61300766]
[1747802606489,1.151,662.19,661.79,0.61300766]
[1747802606687,1.151,662.19,661.8,0.61300766]
[1747802606888,1.151,662.19,661.59,1.054]
[1747802607190,1.151,662.19,661.6,1.72207322]
[1747802607391,1.151,662.19,661.61,0.61320524]
[1747802607590,1.151,662.19,661.62,1.72207322]
[1747802607791,1.151,662.19,661.63,0.61320524]
[1747802607987,1.151,662.19,661.64,0.61344443]
[1747802608291,1.151,662.19,661.65,1.72231241]
[1747802608491,1.151,662.19,661.66,1.72231241]
[1747802608691,1.151,662.19,661.67,0.61344443]
[1747802608887,1.151,662.19,661.68,1.72231241]
[1747802609092,1.151,662.19,661.69,0.61344443]
[1747802609392,1.151,662.19,661.7,1.72231241]
[1747802609587,1.151,662.19,661.71,0.61344443]
[1747802609787,1.151,662.19,661.72,0.61359299]
[1747802609986,1.151,662.19,661.73,0.61359299]
[1747802610191,1.151,662.19,661.74,0.61359299]
[1747802610395,1.151,662.19,661.75,0.61359299]
[1747802610587,1.151,662.19,661.76,0.61359299]
[1747802610786,1.151,662.19,661.77,1.72246097]
[1747802610993,1.151,662.19,661.78,0.61359299]
[1747802611192,1.151,662.19,661.79,1.72246097]
[1747802611494,1.151,662.19,661.8,0.61331258]
[1747802611694,1.151,662.19,661.81,1.72218056]
[1747802611993,1.151,662.19,661.82,0.61331258]
[1747802612191,1.151,662.19,661.83,1.72218056]
[1747802612388,1.151,662.19,661.84,0.61331258]
[1747802612589,1.151,662.19,661.85,0.61331258]
[1747802612789,1.151,662.19,661.86,0.61331258]
[1747802612994,1.151,662.19,661.87,0.61331258]
[1747802613195,1.151,662.19,661.88,0.61362773]
[1747802613496,1.151,662.19,661.89,0.61362773]
[1747802613690,1.151,662.19,661.9,0.61362773]
[1747802613890,1.151,662.19,661.91,0.61362773]
[1747802614092,1.12012344,662.35,661.59,1.054]
[1747802614390,1.12012344,662.35,661.6,1.72166125]
[1747802614589,1.12012344,662.35,661.61,1.72166125]
[1747802614889,1.12012344,662.35,661.62,0.61373416]
[1747802615089,1.12012344,662.35,661.63,1.72166125]
[1747802615394,1.12012344,662.35,661.64,1.72166125]
[1747802615695,1.12012344,662.39,661.65,0.61373416]
[1747802615895,1.12012344,662.39,661.66,1.72166125]
[1747802616194,1.12012344,662.39,661.67,0.61373416]
[1747802616395,1.12012344,662.39,661.68,1.72166125]
[1747802616695,1.12012344,662.39,661.69,0.61407518]
[1747802616888,1.12012344,662.39,661.7,0.61407518]
[1747802617094,1.12012344,662.37,661.71,0.61407518]
[1747802617397,1.12012344,662.37,661.72,1.72200227]
[1747802617591,1.12012344,662.37,661.73,0.61407518]
[1747802617797,1.12012344,662.37,661.74,1.72200227]
[1747802618097,1.12012344,662.37,661.75,0.61407518]
[1747802618392,1.12012344,662.37,661.76,1.72200227]
[1747802618597,1.12012344,662.37,661.77,1.72200227]
[1747802618792,1.12012344,662.37,661.78,0.61407518]
[1747802618992,1.12012344,662.37,661.79,0.61407518]
[1747802619197,1.12012344,662.37,661.8,0.61407518]
[1747802619394,1.12012344,662.37,661.81,0.61407518]
[1747802619593,0.852,662.38,661.82,1.72200227]
[1747802619897,0.852,662.38,661.83,0.61350701]
[1747802620099,0.852,662.38,661.84,1.7214341]
[1747802620293,0.852,662.38,661.85,0.61350701]
[1747802620493,0.852,662.38,661.86,1.7214341]
[1747802620795,0.852,662.38,661.87,1.7214341]
[1747802621000,0.852,662.38,661.88,0.61350701]
[1747802621299,0.852,662.38,661.89,1.7214341]
[1747802621500,0.852,662.38,661.9,0.61350701]
[1747802621701,0.852,662.38,661.91,0.61350701]
[1747802621901,0.852,662.38,661.92,1.7214341]
[1747802622199,0.852,662.38,661.93,0.61350701]
[1747802622500,0.852,662.38,661.94,1.7214341]
[1747802622702,0.852,662.38,661.95,0.61350701]
[1747802622900,0.852,662.38,661.96,0.61350701]
[1747802623194,0.852,662.38,661.97,0.61350701]
[1747802623399,0.852,662.38,661.98,0.61385355]
[1747802623600,0.852,662.38,661.99,0.61385355]
[1747802623801,0.852,662.38,662.0,0.61396218]
[1747802624100,0.852,662.38,661.59,1.054]
[1747802624301,0.852,662.38,661.6,0.61396094]
[1747802624501,0.852,662.38,661.61,0.61396094]
[1747802624801,0.852,662.38,661.62,1.72795635]
[1747802624995,0.852,662.38,661.63,0.61396094]
[1747802625199,0.852,662.38,661.64,0.61396094]
[1747802625400,0.852,662.38,661.65,1.72795635]
[1747802625700,0.852,662.38,661.66,1.72803519]
[1747802625901,0.852,662.38,661.67,0.61403978]
[1747802626098,0.852,662.38,661.68,1.72803519]
[1747802626298,0.852,662.38,661.69,0.61403978]
[1747802626596,0.852,662.38,661.7,1.72803519]
[1747802626900,0.852,662.38,661.71,1.72806225]
[1747802627100,0.852,662.38,661.72,0.61406684]
[1747802627399,0.852,662.38,661.73,0.61406684]
[1747802627600,0.852,662.38,661.74,1.72806225]
[1747802627802,0.852,662.38,661.75,0.61406684]
[1747802628002,0.852,662.38,661.76,1.72806225]
[1747802628202,0.852,662.38,661.77,0.61406684]
[1747802628397,0.852,662.38,661.78,0.61406684]
[1747802628596,0.852,662.38,661.79,0.61406684]
[1747802628800,0.852,662.38,661.8,0.61406684]
[1747802629003,0.852,662.38,661.81,0.61406684]
[1747802629203,0.852,662.38,661.82,0.61406684]
[1747802629405,0.852,662.38,661.83,1.72806225]
[1747802629699,0.852,662.38,661.84,0.61406684]
[1747802629898,0.852,662.38,661.85,0.61406684]
[1747802630102,0.852,662.38,661.86,1.72806225]
[1747802630303,0.852,662.38,661.87,0.61406684]
[1747802630499,0.852,662.38,661.88,0.61406684]
[1747802630803,0.852,662.38,661.89,1.72806225]
[1747802631005,0.852,662.38,661.9,0.61406684]
[1747802631205,0.852,662.38,661.91,1.72806225]
[1747802631403,0.852,662.38,661.92,0.61406684]
[1747802631605,0.852,662.38,661.93,1.72806225]